bitfinex/quotes_ETHUSD_20250715
["timestamp","ask_amount","ask_price","bid_price","bid_amount"]
[1752546544903,5.649,2961.4,2961.3,3.37885905]
[1752546545106,5.649,2961.4,2961.3,0.002]
[1752546545307,9.02578125,2961.4,2961.3,0.002]
[1752546545747,9.85588125,2961.4,2961.3,0.002]
[1752546545910,19.85588125,2961.4,2961.3,0.002]
[1752546548732,3.37712336,2961.1,2961.0,1e-08]
[1752546548945,17.91612336,2961.1,2961.0,1e-08]
[1752546549135,12.26912336,2961.1,2961.0,1e-08]
[1752546549330,27.91612336,2961.1,2961.0,1e-08]
[1752546549530,18.892,2961.1,2961.0,1e-08]
[1752546549735,14.539,2961.1,2961.0,1e-08]
[1752546549933,17.91612336,2961.1,2961.0,1e-08]
[1752546550162,14.539,2961.1,2961.0,1e-08]
[1752546550361,8.1,2961.1,2961.0,1e-08]
[1752546550722,8.1,2961.1,2961.0,3.37723742]
[1752546551061,13.747,2961.1,2961.0,3.37723742]
[1752546551738,8.1,2961.1,2961.0,3.37723742]
[1752546551934,13.746,2961.1,2961.0,4.05269586]
[1752546552148,13.746,2961.1,2961.0,3.37723742]
[1752546552519,13.746,2961.1,2961.0,1e-08]
[1752546552858,13.746,2961.1,2961.0,3.37723742]
[1752546553545,13.746,2961.1,2961.0,3.54603742]
[1752546553747,8.1,2961.1,2961.0,3.54603742]
[1752546553953,13.745,2961.1,2961.0,3.54603742]
[1752546554567,8.1,2961.1,2961.0,3.54603742]
[1752546554863,0.8109,2961.9,2961.1,3.92712336]
[1752546555064,5.644,2961.8,2961.7,3.37638292]
[1752546555264,5.645,2961.8,2961.7,3.37638292]
[1752546555470,10.1664089,2962.3,2961.7,3.37634637]
[1752546555637,9.3445089,2962.3,2961.8,0.03376325]
[1752546555838,5.644,2962.2,2962.0,3.37608348]
[1752546556050,5.644,2962.2,2962.1,3.37598325]
[1752546556369,5.644,2962.2,2962.1,3.54398325]
[1752546556727,5.644,2962.2,2962.1,4.09398325]
[1752546556929,5.644,2962.2,2961.7,0.33763464]
[1752546557138,5.644,2962.2,2961.9,0.1688]
[1752546557343,5.644,2962.2,2961.9,3.54496423]
[1752546557544,9.01987743,2962.2,2961.5,3.37660645]
[1752546557854,9.01987743,2962.2,2961.1,0.7994]
[1752546557855,8.102,2962.3,2961.3,10.0]
[1752546558036,8.102,2962.3,2961.9,0.1688]
[1752546558254,8.102,2962.3,2962.2,3.37586928]
[1752546558579,0.168,2962.9,2962.5,3.37543656]
[1752546558729,5.642,2962.8,2962.2,0.718]
[1752546558928,5.642,2962.8,2962.5,0.168]
[1752546559883,5.641,2962.7,2962.6,3.37541348]
[1752546560172,3.37357685,2964.3,2962.6,3.37541348]
[1752546560173,0.168,2963.5,2962.8,0.55]
[1752546560329,5.641,2963.3,2963.2,3.37473002]
[1752546560729,5.641,2963.3,2963.2,3.54273002]
[1752546561875,0.168,2964.1,2963.3,0.55]
[1752546562180,5.639,2964.0,2963.3,0.409273]
[1752546562384,5.639,2964.0,2963.7,0.168]
[1752546562850,5.638,2963.9,2963.6,0.55]
[1752546563050,5.638,2963.9,2963.8,3.92397356]
[1752546563259,5.638,2963.9,2963.8,4.09197356]
[1752546563678,5.638,2963.9,2963.8,0.168]
[1752546563887,5.638,2963.9,2963.5,0.7731]
[1752546564049,5.638,2963.9,2963.7,0.168]
[1752546565042,6.9821,2963.9,2963.1,1.3435]
[1752546565281,6.9821,2963.9,2963.5,0.168]
[1752546565783,3.37417756,2963.7,2963.5,0.168]
[1752546565957,5.635,2963.6,2963.5,0.168]
[1752546566277,9.82237,2963.6,2962.7,3.37527799]
[1752546566478,3.37461654,2963.3,2963.2,0.168]
[1752546566685,5.634,2963.3,2963.2,0.168]
[1752546566859,5.635,2963.3,2963.2,0.168]
[1752546567303,9.00961613,2963.3,2963.2,0.168]
[1752546567467,6.1985,2963.3,2962.6,0.7559]
[1752546567674,5.635,2963.3,2962.9,0.168]
[1752546567856,5.635,2963.3,2962.7,3.37520003]
[1752546568052,5.635,2963.3,2963.1,0.168]
[1752546568485,5.635,2963.3,2962.5,13.37551859]
[1752546568486,5.635,2963.3,2962.2,0.7547]
[1752546568656,3.37528628,2962.8,2962.2,0.7547]
[1752546568986,5.632,2962.7,2962.3,3.37573332]
[1752546569482,5.632,2962.7,2962.3,0.55]
[1752546570090,5.632,2962.7,2962.2,0.7547]
[1752546570287,9.00740697,2962.7,2962.2,0.7547]
[1752546570486,3.37550777,2962.6,2962.2,0.7547]
[1752546570794,0.001,2963.3,2962.4,0.55]
[1752546570961,5.631,2963.2,2962.6,0.55]
[1752546571281,3.37491603,2963.1,2962.6,0.55]
[1752546571483,5.631,2963.2,2962.7,3.37523166]
[1752546571687,5.631,2963.1,2962.7,4.10535405]
[1752546571989,5.631,2963.1,2962.8,3.37518563]
[1752546572371,5.631,2963.1,2962.9,3.37507005]
[1752546572575,0.001,2963.3,2962.8,0.55]
[1752546572898,0.001,2963.3,2963.2,0.55]
[1752546573064,0.001,2963.3,2963.2,3.95847732]
[1752546573857,0.001,2963.3,2963.2,8.71847732]
[1752546574056,0.001,2963.3,2963.2,8.68473002]
[1752546574397,0.001,2963.3,2963.2,3.92473002]
[1752546574753,0.001,2963.3,2963.1,3.92483706]
[1752546575008,5.628,2963.2,2963.0,4.76]
[1752546575894,3.37506484,2963.0,2962.6,10.7598]
[1752546576097,0.90036947,2963.1,2962.6,0.7598]
[1752546576302,5.628,2963.2,2962.6,0.7598]
[1752546576495,5.628,2963.2,2962.4,10.0]
[1752546576680,3.37503236,2963.0,2962.2,0.7881]
[1752546576874,3.37489,2963.1,2962.6,10.0]
[1752546577706,3.37489044,2963.1,2962.5,13.37550953]
[1752546577902,3.37489044,2963.1,2962.5,3.37550953]
[1752546578070,5.628,2963.2,2962.5,10.55]
[1752546578271,3.37485065,2963.1,2962.5,13.9254952]
[1752546578587,3.37562632,2963.3,2962.9,0.168]
[1752546578588,0.001,2963.3,2962.9,0.168]
[1752546578792,0.001,2963.3,2963.0,0.55]
[1752546578990,0.001,2963.3,2963.2,0.718]
[1752546579166,0.001,2963.3,2963.2,4.09273002]
[1752546580105,0.001,2963.3,2963.2,0.168]
[1752546580294,0.001,2963.3,2963.2,4.09273002]
[1752546580803,0.001,2963.3,2963.2,0.718]
[1752546580989,0.001,2963.3,2963.2,0.168]
[1752546581496,3.37478062,2963.2,2963.1,0.168]
[1752546582324,4.27571321,2963.3,2963.1,0.168]
[1752546582501,3.37473002,2963.2,2963.1,0.168]
[1752546582918,4.27570057,2963.3,2963.1,0.168]
[1752546583214,0.001,2963.3,2963.1,0.168]
[1752546583377,5.623,2963.2,2963.1,0.168]
[1752546583788,0.001,2963.3,2963.2,0.55]
[1752546583982,5.623,2963.3,2963.2,0.55]
[1752546584308,5.623,2963.3,2963.2,0.168]
[1752546584879,8.99761613,2963.3,2963.2,0.168]
[1752546585523,3.37482097,2963.2,2963.0,0.168]
[1752546585899,8.99766109,2963.3,2963.0,0.168]
[1752546586303,5.623,2963.3,2963.0,0.168]
[1752546586489,0.001,2963.3,2963.2,0.168]
[1752546586690,5.62,2963.3,2963.2,0.168]
[1752546587412,6.51945064,2963.3,2962.5,0.793]
[1752546587607,3.37484391,2963.1,2962.7,0.168]
[1752546587793,8.99401843,2963.0,2962.7,0.168]
[1752546587995,3.3751362,2962.9,2962.7,0.168]
[1752546588196,3.37518563,2962.8,2962.7,0.168]
[1752546588418,3.3751297,2962.9,2962.7,0.168]
[1752546588608,5.619,2963.0,2962.7,0.168]
[1752546588808,0.7749,2963.1,2962.7,0.168]
[1752546588809,5.618,2962.9,2962.7,0.168]
[1752546589708,5.618,2962.9,2962.7,3.54323899]
[1752546590029,5.617,2963.0,2962.9,3.92507172]
[1752546590410,5.617,2963.0,2962.9,4.09307172]
[1752546591234,8.99195781,2963.0,2962.9,0.168]
[1752546591425,5.617,2963.0,2962.9,0.168]
[1752546591822,8.99195781,2963.0,2962.9,0.168]
[1752546592027,5.617,2963.0,2962.9,0.168]
[1752546592696,8.99195781,2963.0,2962.9,0.168]
[1752546592896,5.617,2963.0,2962.9,0.168]
[1752546593499,8.99195781,2963.0,2962.9,0.168]
[1752546593703,5.617,2963.0,2962.9,0.168]
[1752546594122,10.69034724,2963.0,2962.1,0.03375983]
[1752546594315,3.37524435,2962.8,2962.5,0.168]
[1752546594527,8.98931289,2962.7,2962.5,0.168]
[1752546594924,3.37541348,2962.6,2962.5,0.168]
[1752546595837,5.614,2962.7,2962.0,3.37605316]
[1752546595838,8.98931974,2962.7,2962.3,0.168]
[1752546596029,3.37541887,2962.6,2962.3,0.168]
[1752546596939,3.37553059,2962.5,2962.3,0.168]
[1752546597237,5.613,2962.4,2962.3,0.168]
[1752546597613,8.98685777,2962.4,2962.3,0.168]
[1752546597802,5.6112164,2962.4,2962.3,0.168]
[1752546598649,5.6112164,2962.4,2962.0,4.928]
[1752546598865,8.98690263,2962.4,2962.0,4.928]
[1752546599219,0.168,2962.6,2962.0,4.928]
[1752546599557,8.8971,2963.0,2962.4,3.37557484]
[1752546599856,5.61,2962.9,2962.5,0.168]
[1752546600058,9.0651,2963.0,2962.5,0.168]
[1752546600215,8.098,2963.0,2962.9,3.37507172]
[1752546600417,0.001,2963.3,2963.1,3.37484391]
[1752546600632,0.001,2963.3,2963.1,3.92484391]
[1752546600832,0.001,2963.3,2963.1,8.68484391]
[1752546601062,0.001,2963.3,2963.1,10.13876334]
[1752546601352,0.001,2963.3,2963.1,5.37876334]
[1752546602346,0.001,2963.3,2963.1,2.00391943]
[1752546602658,5.61,2963.2,2963.1,4.09284391]
[1752546603020,5.61,2963.2,2963.1,0.168]
[1752546603225,5.61,2963.2,2963.1,3.54284391]
[1752546603527,5.61,2963.2,2963.1,0.168]
[1752546604160,0.001,2963.2,2963.1,0.168]
[1752546604336,5.608,2963.2,2963.1,0.168]
[1752546604887,8.98273002,2963.2,2963.1,0.168]
[1752546605024,8.98273002,2963.2,2962.8,0.168]
[1752546605025,9.88110302,2963.2,2962.8,0.168]
[1752546605221,3.37507172,2962.9,2962.8,0.168]
[1752546605468,6.4069,2962.9,2962.5,0.168]
[1752546605786,5.606,2962.8,2962.5,0.168]
[1752546605925,5.606,2962.8,2962.7,0.168]
[1752546607173,5.606,2962.8,2962.7,0.52233879]
[1752546607402,5.606,2962.8,2962.7,14.09329955]
[1752546607882,0.001,2963.2,2963.1,3.92484391]
[1752546608179,5.605,2963.2,2963.1,3.92484391]
[1752546608478,5.605,2963.2,2963.1,4.09284391]
[1752546608789,0.001,2963.2,2963.1,14.8396235]
[1752546609000,0.001,2963.2,2963.1,15.6275235]
[1752546609658,0.001,2963.3,2963.2,13.92473002]
[1752546610046,1e-08,2963.3,2963.2,14.71263002]
[1752546610288,0.001,2964.4,2964.3,14.71137771]
[1752546610640,0.001,2964.4,2964.3,14.87937771]
[1752546610971,0.7947,2966.2,2965.5,3.37211262]
[1752546611185,5.602,2965.7,2965.5,3.37211262]
[1752546611370,0.001,2966.2,2966.1,3.37143049]
[1752546611569,0.001,2966.2,2965.8,0.55]
[1752546611768,0.001,2966.2,2966.1,3.53943049]
[1752546611972,0.001,2966.2,2966.1,0.718]
[1752546612184,0.001,2966.2,2965.5,3.37205852]
[1752546612185,0.8152,2966.2,2965.3,0.7879]
[1752546612386,0.001,2966.2,2965.4,0.58372226]
[1752546612592,0.001,2966.2,2966.1,3.37143049]
[1752546612769,5.6,2966.2,2965.9,3.37154426]
[1752546613093,5.6,2966.2,2966.0,3.37145702]
[1752546613249,5.6,2966.2,2966.0,3.37154317]
[1752546613656,5.6,2966.2,2965.9,3.40533288]
[1752546613896,5.6,2966.2,2965.9,0.55]
[1752546614094,5.6,2966.2,2965.9,0.58371657]
[1752546614396,5.6,2966.2,2966.1,3.92143049]
[1752546614902,5.6,2966.2,2966.1,0.55]
[1752546615104,5.6,2966.2,2966.1,3.92143049]
[1752546615270,5.6,2966.2,2966.1,0.55]
[1752546616093,3.37161106,2966.0,2965.3,0.7879]
[1752546616254,0.7592,2966.1,2964.9,0.7994]
[1752546616462,5.595,2966.0,2965.7,3.3718693]
[1752546616654,5.595,2966.0,2965.7,3.70905623]
[1752546616858,5.595,2966.0,2965.1,0.55]
[1752546616859,5.595,2966.0,2965.6,0.55]
[1752546617606,3.37174003,2965.9,2965.2,3.37238544]
[1752546617768,5.594,2965.8,2965.0,4.1787357]
[1752546617968,5.594,2965.8,2965.5,0.55]
[1752546618367,5.594,2965.8,2965.6,3.37193025]
[1752546618695,5.594,2965.8,2965.7,3.37188522]
[1752546619467,5.594,2965.8,2965.0,0.25610249]
[1752546619670,5.594,2965.8,2965.4,3.92217409]
[1752546619889,5.594,2965.8,2965.1,1.44282447]
[1752546620093,5.594,2965.8,2965.2,0.55]
[1752546620295,5.594,2965.8,2965.4,3.37216225]
[1752546620606,3.37209324,2965.6,2965.1,1.44282447]
[1752546620806,3.37209324,2965.6,2965.0,3.37258426]
[1752546621009,0.8011,2965.7,2964.9,0.7994]
[1752546621230,5.591,2965.6,2965.4,3.37215935]
[1752546621531,5.591,2965.6,2964.9,0.7994]
[1752546621532,5.591,2965.6,2965.2,3.92241638]
[1752546621707,5.591,2965.6,2965.3,3.37233474]
[1752546621906,5.591,2965.6,2965.4,0.31279917]
[1752546622110,5.591,2965.6,2965.5,0.31279917]
[1752546622313,5.591,2965.6,2965.5,0.48079917]
[1752546622527,5.591,2965.6,2965.5,3.85291179]
[1752546622691,5.59,2965.6,2965.5,0.48079917]
[1752546623048,5.59,2965.6,2965.5,0.48063679]
[1752546623891,10.30919892,2965.6,2965.5,0.31263679]
[1752546624343,10.30919892,2965.6,2964.0,4.76]
[1752546624344,0.7637,2964.7,2964.0,4.76]
[1752546624555,0.7637,2964.7,2964.6,0.168]
[1752546624847,5.588,2964.7,2964.6,0.168]
[1752546625009,9.51982256,2964.7,2964.6,0.168]
[1752546625208,3.37338235,2964.4,2964.2,0.168]
[1752546625409,5.588,2964.3,2964.2,0.168]
[1752546626434,5.587,2964.4,2964.2,3.54155555]
[1752546626941,5.587,2964.4,2964.3,4.09147771]
[1752546627238,5.587,2964.4,2964.3,5.61118104]
[1752546627434,0.168,2965.3,2964.8,3.37290812]
[1752546627595,5.587,2965.0,2964.8,3.37290812]
[1752546627793,5.587,2965.0,2964.8,0.168]
[1752546628043,3.37279503,2964.9,2964.8,0.168]
[1752546628200,3.37309554,2964.7,2964.3,0.168]
[1752546628399,8.96016076,2964.6,2964.3,0.168]
[1752546629037,5.587,2964.6,2964.3,0.168]
[1752546629704,8.96020436,2964.6,2964.3,0.168]
[1752546630336,5.587,2964.6,2964.3,0.168]
[1752546630745,0.7637,2965.1,2963.9,0.55]
[1752546630906,0.7637,2965.1,2964.4,0.168]
[1752546630907,3.37292388,2964.8,2964.4,0.168]
[1752546631241,5.585,2964.7,2964.4,0.168]
[1752546631446,3.37325012,2964.5,2964.4,0.168]
[1752546631604,4.16795989,2964.2,2963.5,13.37435858]
[1752546631953,8.95776186,2964.1,2963.8,0.168]
[1752546632149,3.37431485,2963.6,2963.3,0.25232381]
[1752546632335,0.7943,2964.2,2963.8,3.37399525]
[1752546632567,5.584,2964.1,2963.5,0.718]
[1752546632736,8.95778214,2964.1,2963.5,3.92433395]
[1752546632942,5.584,2964.1,2963.9,0.168]
[1752546633873,5.584,2964.1,2964.0,3.37381916]
[1752546634180,5.584,2964.1,2963.9,0.168]
[1752546634753,5.584,2964.1,2963.4,3.37449575]
[1752546634956,5.584,2964.1,2963.7,0.168]
[1752546635338,5.584,2964.1,2963.7,3.5420945]
[1752546635574,5.584,2964.1,2963.7,3.54211137]
[1752546635838,5.584,2964.1,2963.8,3.3740454]
[1752546636073,5.584,2964.1,2963.7,0.168]
[1752546636288,5.584,2964.1,2963.7,3.54212309]
[1752546636471,5.584,2964.1,2963.8,3.37402975]
[1752546636836,5.584,2964.1,2963.7,0.168]
[1752546637265,8.95774854,2964.1,2963.1,0.552]
[1752546637470,3.37411829,2963.8,2963.6,0.168]
[1752546637672,3.37378046,2964.1,2963.5,3.37430567]
[1752546637890,5.581,2964.0,2963.6,0.168]
[1752546638266,5.581,2964.0,2963.6,3.54226836]
[1752546638593,5.581,2964.0,2963.8,0.168]
[1752546638958,0.7943,2964.2,2963.8,0.168]
[1752546639161,2.31639039,2964.9,2964.3,3.37344693]
[1752546639162,0.7689,2964.6,2964.3,3.37344693]
[1752546639387,5.58,2964.5,2964.2,3.37348548]
[1752546639688,5.58,2964.5,2964.4,3.37336391]
[1752546639869,5.58,2964.5,2964.4,0.168]
[1752546640248,3.37366085,2964.2,2964.0,0.168]
[1752546640446,5.58,2964.1,2964.0,0.168]
[1752546640649,8.95370534,2964.1,2963.4,3.37446651]
[1752546640871,8.95370534,2964.1,2963.6,0.168]
[1752546640872,5.748,2964.1,2963.6,0.168]
[1752546641073,0.7541,2963.6,2963.1,0.002]
[1752546641385,3.37450226,2963.4,2963.1,0.002]
[1752546641553,3.37471058,2963.3,2963.1,0.002]
[1752546641746,5.579,2963.2,2963.1,0.002]
[1752546642084,8.95373002,2963.2,2963.1,0.002]
[1752546642268,5.579,2963.2,2963.1,0.002]
[1752546643023,8.95373002,2963.2,2963.1,0.002]
[1752546643181,5.579,2963.2,2963.1,0.002]
[1752546643381,8.95373002,2963.2,2963.1,0.002]
[1752546643817,0.168,2963.3,2963.1,0.002]
[1752546643998,5.579,2963.2,2963.1,3.54476485]
[1752546644201,0.7541,2963.6,2963.2,3.37473002]
[1752546644411,5.578,2963.5,2963.4,3.54250226]
[1752546644729,5.578,2963.5,2963.4,0.168]
[1752546644900,5.578,2963.5,2963.1,3.37677438]
[1752546645106,5.578,2963.5,2963.2,0.168]
[1752546645294,3.37457183,2963.4,2963.1,0.002]
[1752546645493,3.54257183,2963.4,2963.1,0.002]
[1752546645889,3.37463372,2963.3,2963.1,0.002]
[1752546646090,6.4037,2963.2,2963.1,0.002]
[1752546647208,6.4027,2963.2,2963.1,0.002]
[1752546648485,9.77743002,2963.2,2963.1,0.002]
[1752546648690,6.4027,2963.2,2963.1,0.002]
[1752546648910,10.77196577,2963.2,2963.1,0.002]
[1752546649629,20.77196577,2963.2,2963.1,0.002]
[1752546650131,1.82123575,2963.2,2963.1,0.002]
[1752546650328,6.5697,2963.2,2963.1,0.002]
[1752546650828,9.94443002,2963.2,2963.1,0.002]
[1752546651032,6.5697,2963.2,2963.1,0.002]
[1752546651534,9.94443002,2963.2,2963.1,0.002]
[1752546652128,6.5697,2963.2,2963.1,0.002]
[1752546652525,9.94443002,2963.2,2963.1,0.002]
[1752546652907,19.94443002,2963.2,2963.1,0.002]
[1752546653733,3.37484391,2963.1,2962.4,0.002]
[1752546653931,3.37548484,2962.6,2962.4,0.002]
[1752546654104,5.573,2962.5,2962.4,0.002]
[1752546654305,8.94852742,2962.5,2962.4,0.002]
[1752546654534,5.573,2962.5,2962.4,0.002]
[1752546655399,0.8267,2963.2,2962.4,0.002]
[1752546655598,5.74,2963.1,2962.4,0.17]
[1752546655903,5.74,2963.1,2962.7,3.37524525]
[1752546656128,5.572,2963.0,2962.7,3.37524458]
[1752546656434,0.168,2963.1,2962.7,0.168]
[1752546656608,8.9054,2963.6,2963.1,3.37482752]
[1752546656813,8.9054,2963.6,2963.3,3.37461613]
[1752546657013,5.571,2963.5,2963.3,3.37461613]
[1752546657233,5.571,2963.5,2963.4,3.37450226]
[1752546657411,0.8327,2963.9,2963.8,3.37404683]
[1752546657739,8.098,2964.6,2963.6,3.37427453]
[1752546657941,5.571,2964.5,2964.1,3.37370135]
[1752546658146,5.571,2964.5,2963.4,0.7881]
[1752546658147,3.37395249,2963.9,2963.4,4.16258632]
[1752546658436,0.8096,2964.4,2963.2,3.37470431]
[1752546658634,3.37362046,2964.2,2963.6,3.37423527]
[1752546658796,5.571,2964.3,2963.6,3.37417702]
[1752546658998,8.94450997,2964.3,2963.7,3.37409423]
[1752546659234,5.571,2964.3,2963.6,3.3742306]
[1752546659434,0.975411,2964.2,2963.2,3.37473002]
[1752546659624,5.57,2964.1,2963.7,3.37415542]
[1752546659825,5.57,2964.1,2963.6,3.3742124]
[1752546660026,5.57,2964.1,2963.7,3.3741588]
[1752546660226,5.57,2964.1,2963.3,0.03374616]
[1752546660447,3.3741858,2963.7,2963.1,4.12827583]
[1752546660602,5.569,2963.6,2963.4,3.37447782]
[1752546660803,5.569,2963.6,2962.6,3.37531442]
[1752546661003,3.37496119,2963.0,2962.4,3.37758697]
[1752546661203,5.568,2962.9,2962.4,0.002]
[1752546661411,0.8246,2962.8,2962.4,0.002]
[1752546661715,3.37552742,2962.5,2962.4,0.002]
[1752546661919,8.94352742,2962.5,2962.4,0.002]
[1752546662311,18.94352742,2962.5,2962.4,0.002]
[1752546662506,19.75912742,2962.5,2962.4,0.002]
[1752546663516,16.3836,2962.5,2962.4,0.002]
[1752546663846,5.567,2962.5,2962.4,0.002]
[1752546664547,19.75792742,2962.5,2962.4,0.002]
[1752546667655,0.8154,2962.5,2962.4,0.002]
[1752546667862,9.79358107,2963.2,2962.4,0.002]
[1752546667863,9.79358107,2963.2,2962.4,0.17]
[1752546668064,5.565,2963.1,2962.4,0.552]
[1752546668358,5.565,2963.1,2962.8,0.168]
[1752546668568,3.37507172,2962.9,2962.8,0.168]
[1752546668717,5.565,2962.9,2962.4,0.17]
[1752546668916,5.565,2962.8,2962.6,3.37540904]
[1752546669117,9.79358107,2963.2,2962.6,0.67530378]
[1752546669342,5.565,2963.1,2962.7,0.168]
[1752546669561,8.93988297,2963.1,2962.9,0.168]
[1752546669917,5.565,2963.1,2962.9,0.168]
[1752546670117,3.37495781,2963.0,2962.9,0.168]
[1752546670354,8.93989744,2963.1,2962.9,0.168]
[1752546670739,3.37508327,2962.9,2962.4,0.002]
[1752546670960,8.9392195,2962.8,2962.7,0.168]
[1752546671124,8.9392195,2962.8,2962.4,0.002]
[1752546671321,8.93925313,2962.8,2962.5,0.168]
[1752546671551,3.37540194,2962.7,2962.5,0.168]
[1752546671734,13.16836531,2963.2,2962.4,0.002]
[1752546671735,5.563,2962.6,2962.4,0.002]
[1752546672064,5.563,2962.5,2962.4,0.002]
[1752546672265,5.563,2962.5,2962.4,3.37763964]
[1752546672468,5.563,2962.5,2962.4,3.54563964]
[1752546672836,0.168,2963.1,2962.6,3.37541254]
[1752546673038,1.69558107,2963.2,2962.7,3.40895346]
[1752546673236,5.562,2963.0,2962.9,3.37507172]
[1752546673458,5.562,2963.4,2963.3,3.37454015]
[1752546673763,5.562,2963.6,2963.3,3.3745519]
[1752546673996,5.562,2963.6,2963.3,0.168]
[1752546674198,5.562,2963.6,2962.8,0.781]
[1752546674199,3.37445271,2963.5,2962.9,3.37500334]
[1752546674494,3.37454127,2963.4,2963.0,0.168]
[1752546674687,5.561,2963.3,2963.0,0.168]
[1752546675061,8.93566591,2963.3,2963.0,0.168]
[1752546675470,5.561,2963.3,2963.0,0.168]
[1752546675715,5.561,2963.2,2963.0,0.168]
[1752546676649,0.9438,2963.5,2963.0,0.168]
[1752546676880,0.001,2963.6,2963.5,3.37438839]
[1752546677056,0.001,2963.6,2963.5,15.03122723]
[1752546677265,0.001,2963.6,2963.5,1.65683884]
[1752546677562,5.561,2963.6,2963.5,3.37438839]
[1752546677895,0.001,2963.6,2963.5,3.92438839]
[1752546678984,0.001,2963.6,2963.4,3.54249931]
[1752546679293,5.558,2963.5,2963.4,0.168]
[1752546680152,0.001,2963.6,2963.5,3.37438839]
[1752546680368,0.001,2963.6,2963.5,4.06607746]
[1752546680979,0.001,2963.6,2963.4,0.168]
[1752546681675,0.001,2963.6,2963.5,3.37438839]
[1752546681873,0.7547,2963.6,2962.9,10.0]
[1752546682077,0.7547,2963.6,2963.3,3.37453878]
[1752546682372,5.555,2963.5,2963.4,3.37450226]
[1752546682621,0.001,2963.6,2963.5,3.92438839]
[1752546682813,0.001,2963.6,2963.5,13.92438839]
[1752546684111,0.001,2963.6,2963.5,14.69508839]
[1752546684315,0.001,2964.8,2964.2,0.7707]
[1752546684509,0.001,2964.8,2964.7,3.37302256]
[1752546684696,0.001,2964.8,2964.6,3.37309322]
[1752546684697,5.555,2964.8,2964.6,3.37309322]
[1752546685098,5.555,2964.8,2964.7,3.37302256]
[1752546685639,5.555,2964.8,2959.6,12.01386454]
[1752546685640,6.1105,2964.8,2963.8,0.7805]
[1752546685799,0.8028,2964.7,2963.9,3.37383601]
[1752546685979,3.37326119,2964.5,2963.9,3.37383601]
[1752546686179,5.553,2964.4,2963.9,3.37383601]
[1752546686386,5.553,2964.4,2964.2,3.37350646]
[1752546686700,0.001,2964.8,2964.4,3.37334655]
[1752546686896,5.553,2964.7,2964.2,0.58373591]
[1752546687206,5.553,2964.7,2964.6,3.37304734]
[1752546687387,0.001,2964.8,2964.7,3.37302256]
[1752546688021,0.001,2964.8,2964.7,3.92302256]
[1752546688240,0.001,2964.8,2964.7,5.43075977]
[1752546689494,0.001,2964.8,2964.7,15.39702955]
[1752546689826,1e-08,2964.8,2964.7,15.39702955]
[1752546692063,1e-08,2964.8,2964.7,21.11502955]
[1752546694647,0.001,2966.2,2966.1,3.92143049]
[1752546694799,0.001,2966.2,2965.7,3.37183705]
[1752546694997,4.18691683,2966.2,2965.6,3.37192131]
[1752546695197,4.18691683,2966.2,2965.7,3.37186129]
[1752546695198,0.8156,2966.2,2965.7,3.37186129]
[1752546695397,0.8156,2966.2,2966.1,0.168]
[1752546695644,4.18691683,2966.2,2966.1,0.168]
[1752546695851,4.94271944,2966.2,2966.1,0.168]
[1752546696460,1.57140261,2966.2,2965.8,0.168]
[1752546696641,3.37162162,2966.0,2965.9,0.168]
[1752546696851,3.37143191,2966.1,2965.9,0.168]
[1752546697018,0.8156,2966.2,2965.9,0.168]
[1752546697535,0.001,2966.2,2966.1,3.37143049]
[1752546697718,0.001,2966.2,2966.1,3.53943049]
[1752546698055,0.001,2966.2,2966.1,3.57314479]
[1752546698624,0.001,2966.2,2966.1,4.89755334]
[1752546698846,1e-08,2966.2,2966.1,14.89755334]
[1752546699014,1e-08,2966.2,2966.1,14.86383904]
[1752546699217,1e-08,2966.2,2966.1,15.64423904]
[1752546699633,1e-08,2966.2,2966.1,21.18823904]
[1752546699967,1e-08,2966.2,2964.9,0.7804]
[1752546700267,1e-08,2966.2,2966.1,3.37143049]
[1752546700448,1e-08,2966.2,2966.0,0.03371544]
[1752546700762,1e-08,2966.2,2966.1,3.37143049]
[1752546700919,1e-08,2966.2,2966.0,0.03371544]
[1752546701124,1e-08,2966.2,2966.0,3.37150366]
[1752546701972,1e-08,2966.2,2966.1,3.37143049]
[1752546702347,1e-08,2966.2,2965.8,0.55]
[1752546702533,1e-08,2966.2,2966.1,3.92143049]
[1752546702717,1e-08,2966.2,2966.1,4.68781391]
[1752546703047,1e-08,2966.2,2966.1,20.19609961]
[1752546703246,1e-08,2966.2,2966.1,20.95739961]
[1752546704560,1e-08,2966.2,2965.8,0.7613]
[1752546704864,1e-08,2966.2,2965.9,3.37157787]
[1752546705175,1e-08,2966.2,2965.4,9.67450028]
[1752546705176,1e-08,2966.2,2966.0,3.37150314]
[1752546705530,1e-08,2966.2,2965.9,3.37162304]
[1752546705724,1e-08,2966.2,2965.5,0.55]
[1752546705927,1e-08,2966.2,2966.0,3.37153656]
[1752546706223,1e-08,2966.2,2966.1,3.37143049]
[1752546706453,1e-08,2966.2,2966.1,3.92143049]
[1752546706622,1e-08,2966.2,2966.1,3.95514479]
[1752546706950,1e-08,2966.2,2965.6,0.74023]
[1752546707137,3.37139359,2966.2,2965.6,3.37199892]